[Event "Seniors-LEM-65 Sachsen-Anhalt 2024"]
[Site "Magdeburg"]
[Date "2024.07.02"]
[Round "2.1"]
[White "Gehrmann, Rudolf-Rainer"]
[Black "Koehler, Gerhard"]
[Result "1/2-1/2"]
[ECO "E11"]
[WhiteElo "1980"]
[BlackElo "2204"]
[Annotator "RC"]
[PlyCount "71"]
[EventDate "2024.06.25"]
[EventType "swiss"]
[EventCountry "GER"]
[SourceTitle "playchess.com"]
[Source "ChessBase"]
[SourceQuality "1"]
[TimeControl "40/5400+30:1800+30"]

1. c4 {[%emt 0:00:05]} e6 {[%emt 0:00:11]} 2. d4 {[%emt 0:00:48]} Bb4+ {[%emt 0:00:38]} 3. Bd2 {[%emt 0:00:38]} Qe7 {[%emt 0:01:17]} 4. Nc3 {[%emt 0:01:45]} Nf6 {[%emt 0:00:25]} 5. g3 {[%emt 0:03:37]} O-O {[%emt 0:07:34]} 6. Bg2 {[%emt 0:00:12]} Nc6 {[%emt 0:03:01]} 7. Nf3 {[%emt 0:00:36]} Bxc3 {[%emt 0:02:11]} 8. Bxc3 {[%emt 0:00:14]} Ne4 {[%emt 0:00:03]} 9. Qc2 {[%emt 0:00:28]} f5 {[%emt 0:03:22]} 10. O-O {[%emt 0:01:54]} d6 {[%emt 0:03:06]} 11. Nd2 {[%emt 0:14:30]} Nxc3 {[%emt 0:06:08]} 12. Qxc3 {[%emt 0:00:57]} Qf6 {[%emt 0:01:08]} 13. e3 {[%emt 0:02:41]} Bd7 {[%emt 0:07:36]} 14. Rac1 {[%emt 0:03:39]} e5 {[%emt 0:05:54]} 15. d5 {[%emt 0:03:42]} Ne7 {[%emt 0:00:10]} 16. f4 {[%emt 0:01:29]} Ng6 {[%emt 0:01:16]} 17. Nf3 {[%emt 0:02:12]} c5 {[%emt 0:08:59]} 18. dxc6 {[%emt 0:05:44]} Bxc6 {[%emt 0:01:07]} 19. Rfd1 {[%emt 0:01:00]} Rad8 {[%emt 0:04:46]} 20. Rd2 {[%emt 0:04:43]} Bxf3 {[%emt 0:07:27]} 21. Bxf3 {[%emt 0:00:21]} e4 {[%emt 0:00:07]} 22. Qxf6 {[%emt 0:00:44]} Rxf6 {[%emt 0:00:02]} 23. Be2 {[%emt 0:00:18]} Ne7 {[%emt 0:02:03]} 24. Rcd1 {[%emt 0:00:57]} Kf8 {[%emt 0:03:55]} 25. c5 {[%emt 0:03:14]} Nc8 {[%emt 0:00:19]} 26. g4 {[%emt 0:06:19]} fxg4 {[%emt 0:04:40]} 27. Bxg4 {[%emt 0:00:12]} Rg6 {[%emt 0:01:05]} 28. Rg2 {[%emt 0:00:21]} Ke7 {[%emt 0:00:29]} 29. Bf5 {[%emt 0:04:50]} Rxg2+ {[%emt 0:00:28]} 30. Kxg2 {[%emt 0:00:02]} dxc5 {[%emt 0:00:32]} 31. Rxd8 {[%emt 0:00:13]} Kxd8 {[%emt 0:00:02]} 32. Bxe4 {[%emt 0:02:01]} Nd6 {[%emt 0:00:31]} 33. Bd5 {[%emt 0:03:22]} Ke7 {[%emt 0:02:54]} 34. e4 {[%emt 0:00:37]} b6 {[%emt 0:00:30]} 35. Kf3 {[%emt 0:02:15]} Nb5 {[%emt 0:01:38]} 36. Ke3 {[%emt 0:02:03]} 1/2-1/2

[Event "Seniors-LEM-65 Sachsen-Anhalt 2024"]
[Site "Magdeburg"]
[Date "2024.07.02"]
[Round "2.2"]
[White "Schnelzer, Reinhold"]
[Black "Barten, Ralf"]
[Result "1-0"]
[ECO "D19"]
[WhiteElo "2162"]
[BlackElo "1970"]
[Annotator "RC"]
[PlyCount "99"]
[EventDate "2024.06.25"]
[EventType "swiss"]
[EventCountry "GER"]
[SourceTitle "playchess.com"]
[Source "ChessBase"]
[SourceQuality "1"]
[TimeControl "40/5400+30:1800+30"]

1. d4 {[%emt 0:00:05]} d5 {[%emt 0:00:16]} 2. c4 {[%emt 0:00:12]} c6 {[%emt 0:00:31]} 3. Nf3 {[%emt 0:00:10]} Nf6 {[%emt 0:00:37]} 4. Nc3 {[%emt 0:00:12]} dxc4 {[%emt 0:01:30]} 5. a4 {[%emt 0:00:38]} Bf5 {[%emt 0:01:17]} 6. e3 {[%emt 0:00:43]} e6 {[%emt 0:00:31]} 7. Bxc4 {[%emt 0:00:16]} Bb4 {[%emt 0:02:29]} 8. O-O {[%emt 0:01:24]} O-O {[%emt 0:00:10]} 9. Nh4 {[%emt 0:02:16]} Bg6 {[%emt 0:03:42]} 10. Nxg6 {[%emt 0:00:36]} hxg6 {[%emt 0:00:11]} 11. Qe2 {[%emt 0:07:34]} Nbd7 {[%emt 0:01:40]} 12. Rd1 {[%emt 0:05:07]} Qe7 {[%emt 0:01:37]} 13. Bd2 {[%emt 0:06:10]} Rad8 {[%emt 0:02:57]} 14. Be1 {[%emt 0:04:23]} c5 {[%emt 0:08:44]} 15. a5 {[%emt 0:07:14]} cxd4 {[%emt 0:09:46]} 16. exd4 {[%emt 0:11:05]} Nb8 {[%emt 0:08:27]} 17. d5 {[%emt 0:04:18]} exd5 {[%emt 0:06:07]} 18. Qxe7 {[%emt 0:01:28]} Bxe7 {[%emt 0:00:09]} 19. Nxd5 {[%emt 0:01:09]} Nxd5 {[%emt 0:05:11]} 20. Rxd5 {[%emt 0:04:10]} Nc6 {[%emt 0:02:09]} 21. a6 {[%emt 0:06:30]} bxa6 {[%emt 0:09:14]} 22. Rxa6 {[%emt 0:02:47]} Rxd5 {[%emt 0:06:31]} 23. Bxd5 {[%emt 0:00:15]} Nb4 {[%emt 0:00:11]} 24. Bxb4 {[%emt 0:00:50]} Bxb4 {[%emt 0:00:07]} 25. Rxa7 {[%emt 0:01:07]} Rd8 {[%emt 0:00:07]} 26. Bxf7+ {[%emt 0:02:11]} Kh7 {[%emt 0:00:06]} 27. g3 {[%emt 0:01:53]} Rd1+ {[%emt 0:00:28]} 28. Kg2 {[%emt 0:00:33]} Rd2 {[%emt 0:00:09]} 29. Ra6 {[%emt 0:01:06]} Rxb2 {[%emt 0:04:51]} 30. Bxg6+ {[%emt 0:01:37]} Kg8 {[%emt 0:00:26]} 31. Ra8+ {[%emt 0:01:51]} Bf8 {[%emt 0:00:04]} 32. h4 {[%emt 0:00:59]} Rb6 {[%emt 0:00:49]} 33. h5 {[%emt 0:00:14]} Rd6 {[%emt 0:00:35]} 34. g4 {[%emt 0:01:44]} Rb6 {[%emt 0:04:40]} 35. Kg3 {[%emt 0:02:11]} Rf6 {[%emt 0:01:52]} 36. g5 {[%emt 0:01:16]} Rb6 {[%emt 0:00:12]} 37. f4 {[%emt 0:01:27]} Rd6 {[%emt 0:01:23]} 38. Kg4 {[%emt 0:00:56]} Rb6 {[%emt 0:00:37]} 39. Rc8 {[%emt 0:12:42]} Rd6 {[%emt 0:01:00]} 40. Kf5 {[%emt 0:04:03]} Rd5+ {[%emt 0:04:45]} 41. Kg4 {[%emt 0:32:10]} Rd6 {[%emt 0:33:22]} 42. Rb8 {[%emt 0:00:39]} Rc6 {[%emt 0:08:03]} 43. Be4 {[%emt 0:01:06]} Rd6 {[%emt 0:00:30]} 44. g6 {[%emt 0:00:22]} Rf6 {[%emt 0:00:00]} 45. Bc2 {[%emt 0:00:00]} Kh8 {[%emt 0:00:00]} 46. f5 {[%emt 0:00:00]} Kg8 {[%emt 0:00:00]} 47. Kh3 {[%emt 0:00:00]} Kh8 {[%emt 0:00:00]} 48. Kh4 {[%emt 0:00:00]} Kg8 {[%emt 0:00:00]} 49. Bb3+ {[%emt 0:00:00]} Kh8 {[%emt 0:00:00]} 50. Bf7 {[%emt 0:00:00]} 1-0

[Event "Seniors-LEM-65 Sachsen-Anhalt 2024"]
[Site "Magdeburg"]
[Date "2024.07.02"]
[Round "2.3"]
[White "Domsgen, Bernd"]
[Black "Okrajek, Alexander"]
[Result "0-1"]
[ECO "B12"]
[WhiteElo "1963"]
[BlackElo "2163"]
[Annotator "RC"]
[PlyCount "56"]
[EventDate "2024.06.25"]
[EventType "swiss"]
[EventCountry "GER"]
[SourceTitle "playchess.com"]
[Source "ChessBase"]
[SourceQuality "1"]
[TimeControl "40/5400+30:1800+30"]

1. e4 {[%emt 0:00:04]} c6 {[%emt 0:00:47]} 2. d4 {[%emt 0:00:12]} d5 {[%emt 0:00:06]} 3. e5 {[%emt 0:01:48]} Bf5 {[%emt 0:01:02]} 4. Nf3 {[%emt 0:00:40]} e6 {[%emt 0:00:47]} 5. Be2 {[%emt 0:00:04]} Nd7 {[%emt 0:01:25]} 6. c3 {[%emt 0:00:46]} h6 {[%emt 0:02:21]} 7. O-O {[%emt 0:00:23]} Ne7 {[%emt 1:27:32]} 8. Na3 {[%emt 0:04:11]} Bg6 {[%emt 0:00:00]} 9. b4 {[%emt 0:04:20]} Nf5 {[%emt 0:00:00]} 10. Nc2 {[%emt 0:00:21]} a5 {[%emt 0:00:00]} 11. Bd2 {[%emt 0:06:15]} axb4 {[%emt 0:00:00]} 12. cxb4 {[%emt 0:00:30]} b5 {[%emt 0:00:00]} 13. Qc1 {[%emt 0:03:45]} Nb6 {[%emt 0:00:00]} 14. g4 {[%emt 0:10:48]} Ne7 {[%emt 0:00:00]} 15. Nh4 {[%emt 0:08:29]} Be4 {[%emt 0:00:00]} 16. f4 {[%emt 0:05:35]} g6 {[%emt 0:00:00]} 17. Ne3 {[%emt 0:06:42]} Nc4 {[%emt 0:00:00]} 18. Bf3 {[%emt 0:02:02]} Bd3 {[%emt 0:00:00]} 19. Rf2 {[%emt 0:00:10]} Nc8 {[%emt 0:00:00]} 20. Nxc4 {[%emt 0:11:35]} Bxc4 {[%emt 0:00:00]} 21. Ng2 {[%emt 0:00:57]} Be7 {[%emt 0:00:00]} 22. Qc2 {[%emt 0:00:56]} Bh4 {[%emt 0:00:00]} 23. Nxh4 {[%emt 0:10:33]} Qxh4 {[%emt 0:00:00]} 24. Rg2 {[%emt 0:00:53]} Ra3 {[%emt 0:00:00]} 25. Be1 {[%emt 0:02:30]} Qe7 {[%emt 0:00:00]} 26. Qf2 {[%emt 0:05:18]} Qa7 {[%emt 0:00:00]} 27. f5 {[%emt 0:01:14]} Rxf3 {[%emt 0:00:00]} 28. Qxf3 {[%emt 0:00:22]} Qxd4+ {[%emt 0:00:00]} 0-1

[Event "Seniors-LEM-65 Sachsen-Anhalt 2024"]
[Site "Magdeburg"]
[Date "2024.07.02"]
[Round "2.4"]
[White "Kahe, Ralph"]
[Black "Onasch, Gunnar"]
[Result "1-0"]
[ECO "D35"]
[WhiteElo "2129"]
[BlackElo "1949"]
[Annotator "NA RC"]
[PlyCount "71"]
[EventDate "2024.06.25"]
[EventType "swiss"]
[EventCountry "GER"]
[SourceTitle "playchess.com"]
[Source "ChessBase"]
[SourceQuality "1"]
[TimeControl "40/5400+30:1800+30"]

1. d4 {[%emt 0:00:14]} d5 {[%emt 0:00:14]} 2. c4 {[%emt 0:00:18]} e6 {[%emt 0:00:06]} 3. Nc3 {[%emt 0:00:06]} Nf6 {[%emt 0:00:10]} 4. Bg5 {[%emt 0:00:07]} Be7 {[%emt 0:00:08]} 5. e3 {[%emt 0:00:06]} O-O {[%emt 0:00:09]} 6. Rc1 {[%emt 0:00:11]} h6 {[%emt 0:00:48]} 7. Bh4 {[%emt 0:00:05]} b6 {[%emt 0:00:23]} 8. cxd5 {[%emt 0:00:08]} exd5 {[%emt 0:01:58]} 9. Bd3 {[%emt 0:00:10]} Bb7 {[%emt 0:01:00]} 10. Nge2 {[%emt 0:00:27]} Nbd7 {[%emt 0:09:20]} 11. O-O {[%emt 0:01:57]} Rc8 {[%emt 0:03:10]} 12. Nb5 {[%emt 0:04:23]} a6 {[%emt 0:02:35]} 13. Na7 {[%emt 0:00:15]} Ra8 {[%emt 0:01:36]} 14. Nc6 {[%emt 0:00:08]} Bxc6 {[%emt 0:00:55]} 15. Rxc6 {[%emt 0:00:03]} Ra7 {[%emt 0:06:28]} 16. f3 {[%emt 0:02:37]} Nb8 {[%emt 0:10:12]} 17. Rc1 {[%emt 0:00:29]} c5 {[%emt 0:04:34]} 18. Bb1 {[%emt 0:02:03]} Nbd7 {[%emt 0:05:55]} 19. Bf2 {[%emt 0:01:11]} Re8 {[%emt 0:02:17]} 20. Ng3 {[%emt 0:03:36]} cxd4 {[%emt 0:05:50]} 21. exd4 {[%emt 0:00:14]} Bd6 {[%emt 0:02:21]} 22. Re1 {[%emt 0:02:12]} Nf8 {[%emt 0:02:08]} 23. Rxe8 {[%emt 0:02:00]} Qxe8 {[%emt 0:00:39]} 24. Qd3 {[%emt 0:02:00]} b5 {[%emt 0:02:47]} 25. Nf5 {[%emt 0:05:20]} Bf4 {[%emt 0:11:54]} 26. Re1 {[%emt 0:00:25]} Qd8 {[%emt 0:03:54]} 27. g3 {[%emt 0:07:11]} Bb8 {[%emt 0:04:41]} 28. Rc1 {[%emt 0:06:19]} Rc7 {[%emt 0:02:14]} 29. Rxc7 {[%emt 0:02:16]} Qxc7 {[%emt 0:01:06]} 30. Be3 {[%emt 0:02:13]} Ng6 {[%emt 0:03:39]} 31. Qa3 {[%emt 0:04:07]} a5 {[%emt 0:02:59]} 32. Bd3 {[%emt 0:02:03]} b4 {[%emt 0:02:42]} 33. Qa4 {[%emt 0:00:18]} Nd7 {[%emt 0:04:20]} 34. Qb5 {[%emt 0:01:08]} Nf6 {[%emt 0:01:39]} 35. Kf2 {[%emt 0:00:44]} Nf8 {[%emt 0:01:12]} 36. Bf4 {[%emt 0:00:25]} 1-0

[Event "Seniors-LEM-65 Sachsen-Anhalt 2024"]
[Site "Magdeburg"]
[Date "2024.07.02"]
[Round "2.5"]
[White "Lehr, Thomas"]
[Black "Babrikowski, Peter"]
[Result "0-1"]
[ECO "B12"]
[WhiteElo "1954"]
[BlackElo "2129"]
[Annotator "NA RC"]
[PlyCount "46"]
[EventDate "2024.06.25"]
[EventType "swiss"]
[EventCountry "GER"]
[SourceTitle "playchess.com"]
[Source "ChessBase"]
[SourceQuality "1"]
[TimeControl "40/5400+30:1800+30"]

1. e4 {[%emt 0:00:06]} c6 {[%emt 0:00:20]} 2. d4 {[%emt 0:00:28]} d5 {[%emt 0:00:10]} 3. e5 {[%emt 0:00:06]} g6 {[%emt 0:01:32]} 4. c4 {[%emt 0:07:11]} Bg7 {[%emt 0:02:06]} 5. Nc3 {[%emt 0:00:57]} dxc4 {[%emt 0:04:28]} 6. Bxc4 {[%emt 0:00:31]} Nh6 {[%emt 0:00:41]} 7. Bxh6 {[%emt 0:08:22]} Bxh6 {[%emt 0:00:13]} 8. h4 {[%emt 0:00:08]} b5 {[%emt 0:04:48]} 9. Bb3 {[%emt 0:01:02]} a5 {[%emt 0:00:48]} 10. e6 {[%emt 0:14:07]} Bxe6 {[%emt 0:09:31]} 11. Bxe6 {[%emt 0:05:04]} fxe6 {[%emt 0:00:08]} 12. Nf3 {[%emt 0:10:08]} b4 {[%emt 0:05:28]} 13. Na4 {[%emt 0:01:59]} Qd5 {[%emt 0:03:21]} 14. Qe2 {[%emt 0:04:35]} Nd7 {[%emt 0:01:06]} 15. b3 {[%emt 0:01:55]} O-O {[%emt 0:04:43]} 16. Rd1 {[%emt 0:03:18]} Rf4 {[%emt 0:03:41]} 17. Kf1 {[%emt 0:08:45]} Re4 {[%emt 0:12:33]} 18. Qd3 $17 {[%emt 0:04:24]} ({Better is} 18. Qc2) 18... Rd8 {[%emt 0:05:31]} 19. Rh3 {[%emt 0:06:32]} Rg4 {[%emt 0:08:20]} 20. Nb2 {[%emt 0:05:54]} Nf6 {[%emt 0:02:14]} 21. Nc4 {[%emt 0:00:49]} Nh5 {[%emt 0:01:16]} 22. g3 {[%emt 0:03:24]} Bg7 {[%emt 0:00:22]} 23. Ne3 {[%emt 0:01:34]} Qxf3 {[%emt 0:28:40]} 0-1

[Event "Seniors-LEM-65 Sachsen-Anhalt 2024"]
[Site "Magdeburg"]
[Date "2024.07.02"]
[Round "2.6"]
[White "Broemel, Richard"]
[Black "Wolff, Stefan"]
[Result "1-0"]
[ECO "A80"]
[WhiteElo "2123"]
[BlackElo "1956"]
[Annotator "RC"]
[PlyCount "39"]
[EventDate "2024.06.25"]
[EventType "swiss"]
[EventCountry "GER"]
[SourceTitle "playchess.com"]
[Source "ChessBase"]
[SourceQuality "1"]
[TimeControl "40/5400+30:1800+30"]

1. d4 {[%emt 0:00:02]} f5 {[%emt 0:00:09]} 2. Bf4 {[%emt 0:01:09]} Nf6 {[%emt 0:00:06]} 3. e3 {[%emt 0:00:05]} d6 {[%emt 0:01:53]} 4. h3 {[%emt 0:01:49]} c6 {[%emt 0:02:27]} 5. Nd2 {[%emt 0:01:13]} g6 {[%emt 0:01:48]} 6. Ngf3 {[%emt 0:03:00]} Bg7 {[%emt 0:01:34]} 7. Bc4 {[%emt 0:02:15]} e6 {[%emt 0:05:03]} 8. c3 {[%emt 0:03:12]} Qe7 {[%emt 0:08:56]} 9. O-O {[%emt 0:03:43]} h6 {[%emt 0:02:42]} 10. Nh4 {[%emt 0:06:27]} Kf7 {[%emt 0:06:53]} 11. Bg3 {[%emt 0:06:34]} Nbd7 {[%emt 0:08:09]} 12. Re1 {[%emt 0:08:43]} d5 {[%emt 0:03:31]} 13. Bb3 {[%emt 0:06:14]} Nh5 {[%emt 0:03:09]} 14. Qf3 {[%emt 0:00:43]} Bf6 {[%emt 0:07:43]} 15. Nxf5 {[%emt 0:04:34]} exf5 {[%emt 0:01:00]} 16. e4 {[%emt 0:00:54]} Nxg3 {[%emt 0:00:46]} 17. exd5 {[%emt 0:01:14]} Ne4 {[%emt 0:09:13]} 18. d6+ {[%emt 0:04:29]} Ke8 {[%emt 0:00:11]} 19. Nxe4 {[%emt 0:04:21]} Qg7 {[%emt 0:09:20]} 20. Nc5+ {[%emt 0:03:58]} 1-0

[Event "Seniors-LEM-65 Sachsen-Anhalt 2024"]
[Site "Magdeburg"]
[Date "2024.07.02"]
[Round "2.7"]
[White "Schmidt, Gerhard"]
[Black "Bregler, Herbert"]
[Result "0-1"]
[ECO "D55"]
[WhiteElo "2112"]
[BlackElo "1952"]
[Annotator "NA RC"]
[PlyCount "78"]
[EventDate "2024.06.25"]
[EventType "swiss"]
[EventCountry "GER"]
[SourceTitle "playchess.com"]
[Source "ChessBase"]
[SourceQuality "1"]
[TimeControl "40/5400+30:1800+30"]

1. d4 {[%emt 0:00:09]} Nf6 {[%emt 0:00:11]} 2. Nf3 {[%emt 0:00:26]} e6 {[%emt 0:00:24]} 3. c4 {[%emt 0:00:12]} d5 {[%emt 0:00:27]} 4. Nc3 {[%emt 0:00:18]} Be7 {[%emt 0:01:29]} 5. Bg5 {[%emt 0:00:18]} h6 {[%emt 0:00:17]} 6. Bxf6 {[%emt 0:07:30]} Bxf6 {[%emt 0:00:30]} 7. e3 {[%emt 0:00:51]} O-O {[%emt 0:00:53]} 8. b4 {[%emt 0:01:59]} a5 {[%emt 0:08:33]} 9. b5 {[%emt 0:07:52]} c5 {[%emt 0:03:03]} 10. bxc6 {[%emt 0:15:14]} Nxc6 {[%emt 0:06:16]} 11. cxd5 {[%emt 0:03:42]} exd5 {[%emt 0:00:10]} 12. Qb3 {[%emt 0:00:55]} a4 {[%emt 0:13:53]} 13. Qb2 {[%emt 0:14:18]} Re8 $14 {[%emt 0:16:05]} (13... Qa5 $15 14. Rc1 Bf5) 14. Be2 {[%emt 0:01:10]} Qa5 {[%emt 0:16:09]} 15. O-O {[%emt 0:02:52]} Bf5 {[%emt 0:02:08]} 16. Bb5 {[%emt 0:11:15]} a3 {[%emt 0:00:35]} 17. Qb3 {[%emt 0:00:07]} Be4 {[%emt 0:03:35]} 18. Nxd5 {[%emt 0:06:42]} Bxd5 {[%emt 0:02:12]} 19. Qxd5 {[%emt 0:00:11]} Nb4 {[%emt 0:01:35]} 20. Qb3 {[%emt 0:10:39]} Qxb5 {[%emt 0:00:19]} 21. Rab1 {[%emt 0:00:03]} Be7 {[%emt 0:02:26]} 22. Rfc1 {[%emt 0:05:58]} Qd5 {[%emt 0:04:34]} 23. Rc4 {[%emt 0:03:04]} Nc6 {[%emt 0:02:30]} 24. Qd3 {[%emt 0:00:13]} b5 {[%emt 0:03:49]} 25. Rcc1 {[%emt 0:01:36]} Nb4 {[%emt 0:02:48]} 26. Qe2 {[%emt 0:02:44]} Nxa2 {[%emt 0:04:05]} 27. Rc7 {[%emt 0:00:17]} b4 {[%emt 0:00:39]} 28. e4 {[%emt 0:03:55]} Qd6 {[%emt 0:01:05]} 29. Rxe7 {[%emt 0:00:00]} Qxe7 {[%emt 0:00:51]} 30. Qxa2 {[%emt 0:00:00]} Qxe4 {[%emt 0:00:24]} 31. h3 {[%emt 0:00:00]} Qe2 {[%emt 0:00:22]} 32. Qb3 {[%emt 0:00:00]} a2 {[%emt 0:01:25]} 33. Ra1 {[%emt 0:00:00]} Reb8 {[%emt 0:00:29]} 34. Ne5 {[%emt 0:00:00]} Rb7 {[%emt 0:01:46]} 35. Qd5 {[%emt 0:00:35]} Qb5 {[%emt 0:00:09]} 36. Qb3 {[%emt 0:00:26]} Ra3 {[%emt 0:00:10]} 37. Qb2 {[%emt 0:00:43]} Qd5 {[%emt 0:00:16]} 38. Qc2 {[%emt 0:01:09]} b3 {[%emt 0:01:06]} 39. Qc8+ {[%emt 0:01:03]} Kh7 {[%emt 0:00:08]} 0-1

[Event "Seniors-LEM-65 Sachsen-Anhalt 2024"]
[Site "Magdeburg"]
[Date "2024.07.02"]
[Round "2.8"]
[White "Heise, Juergen"]
[Black "Leibovitch, Iziaslav"]
[Result "1/2-1/2"]
[ECO "A01"]
[WhiteElo "1930"]
[BlackElo "2105"]
[Annotator "NA RC"]
[PlyCount "109"]
[EventDate "2024.06.25"]
[EventType "swiss"]
[EventCountry "GER"]
[SourceTitle "playchess.com"]
[Source "ChessBase"]
[SourceQuality "1"]
[TimeControl "40/5400+30:1800+30"]

1. b3 {[%emt 0:00:04]} d6 {[%emt 0:02:04]} 2. Bb2 {[%emt 0:00:09]} e5 {[%emt 0:00:47]} 3. e3 {[%emt 0:00:25]} Nf6 {[%emt 0:04:51]} 4. Nf3 {[%emt 0:02:24]} g6 {[%emt 0:02:33]} 5. d4 {[%emt 0:01:03]} e4 {[%emt 0:04:01]} 6. Nfd2 {[%emt 0:00:32]} Bg7 {[%emt 0:01:44]} 7. c4 {[%emt 0:00:31]} O-O {[%emt 0:00:32] A01: Nimzowitsch-Larsen Opening.} 8. Nc3 {[%emt 0:00:39]} Re8 {[%emt 0:00:20]} 9. Qc2 {[%emt 0:04:04]} Bf5 {[%emt 0:13:09]} 10. h3 {[%emt 0:04:09]} h5 {[%emt 0:01:49]} 11. Be2 {[%emt 0:03:26]} c6 {[%emt 0:07:29]} 12. Nf1 {[%emt 0:09:57]} Qe7 {[%emt 0:03:20]} 13. Nd2 {[%emt 0:08:15]} a5 {[%emt 0:01:55]} 14. a3 {[%emt 0:01:12]} Nbd7 {[%emt 0:01:04]} 15. O-O {[%emt 0:00:55]} Nf8 {[%emt 0:00:49]} 16. b4 {[%emt 0:04:53]} N8h7 {[%emt 0:01:25]} 17. Rfd1 {[%emt 0:02:01]} d5 {[%emt 0:05:34]} 18. Qb3 {[%emt 0:02:05]} Qd7 {[%emt 0:01:55]} 19. Bf1 {[%emt 0:03:50]} Be6 $2 {[%emt 0:03:36]} (19... Ng5 $17 20. cxd5 Nxh3+ (20... cxd5 21. h4 $11) (20... Nxd5 21. bxa5 Bxh3 22. Nxd5 $11) 21. gxh3 Bxh3 22. Bxh3 Qxh3 23. dxc6 bxc6) 20. Na4 {[%emt 0:04:52]} Qd8 {[%emt 0:05:14]} 21. Nc5 {[%emt 0:01:53]} Bc8 $14 {[%emt 0:00:31]} 22. Bc3 {[%emt 0:07:26]} b6 {[%emt 0:06:11]} 23. Na4 {[%emt 0:00:07]} Ng5 {[%emt 0:00:38]} 24. c5 {[%emt 0:02:18]} b5 {[%emt 0:02:36]} 25. Nb6 {[%emt 0:00:39]} a4 {[%emt 0:00:14]} 26. Qc2 {[%emt 0:01:00]} Ra7 {[%emt 0:00:26]} 27. Nxc8 {[%emt 0:00:53]} Qxc8 {[%emt 0:00:16]} 28. Be2 {[%emt 0:02:03]} Bh6 {[%emt 0:02:58]} 29. Nf1 {[%emt 0:01:05]} Kh7 {[%emt 0:00:38]} 30. Nh2 {[%emt 0:02:34]} Qe6 {[%emt 0:01:06]} 31. h4 {[%emt 0:02:21]} Nh3+ {[%emt 0:00:09]} 32. gxh3 {[%emt 0:08:26]} Qxh3 {[%emt 0:00:19]} 33. Be1 {[%emt 0:00:25]} Qxh4 {[%emt 0:02:34]} 34. f4 {[%emt 0:01:33]} Qh3 {[%emt 0:00:13]} 35. Bf2 {[%emt 0:01:27]} Rg8 {[%emt 0:03:57]} 36. Bf1 {[%emt 0:00:31]} Qe6 {[%emt 0:02:13]} 37. Bh4 {[%emt 0:05:14]} Ng4 {[%emt 0:01:34]} 38. Qe2 {[%emt 0:01:28]} g5 {[%emt 0:01:09]} 39. fxg5 {[%emt 0:00:59]} Bxg5 {[%emt 0:00:25]} 40. Bxg5 {[%emt 0:00:38]} Rxg5 {[%emt 0:00:28]} 41. Bg2 {[%emt 0:36:12]} f5 {[%emt 0:33:15]} 42. Rf1 {[%emt 0:01:36]} Rag7 {[%emt 0:00:45]} 43. Nxg4 {[%emt 0:00:39]} Rxg4 {[%emt 0:00:51]} 44. Ra2 {[%emt 0:02:26]} Qg6 {[%emt 0:09:18]} 45. Qf2 {[%emt 0:02:19]} Rf7 {[%emt 0:02:05]} 46. Kh2 {[%emt 0:00:58]} Qf6 {[%emt 0:01:43]} 47. Bh3 {[%emt 0:00:41]} Rg5 {[%emt 0:00:55]} 48. Qf4 {[%emt 0:00:41]} Qg7 {[%emt 0:00:25]} 49. Rg2 {[%emt 0:00:00]} Rxg2+ {[%emt 0:00:00]} 50. Bxg2 {[%emt 0:00:00]} Qg4 {[%emt 0:00:00]} 51. Bh3 {[%emt 0:00:00]} Qxf4+ {[%emt 0:00:00]} 52. Rxf4 {[%emt 0:00:00]} Kg6 {[%emt 0:00:00]} 53. Kg3 {[%emt 0:00:00]} Kg5 {[%emt 0:00:00]} 54. Bf1 {[%emt 0:00:00]} Rg7 {[%emt 0:00:00]} 55. Bh3 {[%emt 0:00:00]} 1/2-1/2

[Event "Seniors-LEM-65 Sachsen-Anhalt 2024"]
[Site "Magdeburg"]
[Date "2024.07.02"]
[Round "2.9"]
[White "Costello, Colin A"]
[Black "Krueger, Erich"]
[Result "1-0"]
[ECO "A26"]
[WhiteElo "1911"]
[BlackElo "2095"]
[Annotator "NA RC"]
[PlyCount "73"]
[EventDate "2024.06.25"]
[EventType "swiss"]
[EventCountry "GER"]
[SourceTitle "playchess.com"]
[Source "ChessBase"]
[SourceQuality "1"]
[TimeControl "40/5400+30:1800+30"]

1. c4 {[%emt 0:00:03]} Nf6 {[%emt 0:00:09]} 2. Nc3 {[%emt 0:00:09]} g6 {[%emt 0:00:09]} 3. Nf3 {[%emt 0:00:09]} Bg7 {[%emt 0:00:13]} 4. g3 {[%emt 0:00:18]} O-O {[%emt 0:00:33]} 5. Bg2 {[%emt 0:00:11]} d6 {[%emt 0:01:07]} 6. O-O {[%emt 0:00:10]} e5 {[%emt 0:00:19]} 7. d3 {[%emt 0:00:08]} Nc6 {[%emt 0:00:29]} 8. Rb1 {[%emt 0:00:15]} a5 {[%emt 0:00:34]} 9. a3 {[%emt 0:00:19]} Re8 {[%emt 0:01:55]} 10. Nd2 {[%emt 0:01:21]} Be6 {[%emt 0:01:38]} 11. b4 {[%emt 0:00:46] A26: English Opening vs King's Indian with ...Nc6 and d3.} axb4 {[%emt 0:00:53]} 12. axb4 {[%emt 0:00:08]} d5 {[%emt 0:02:44]} 13. b5 {[%emt 0:00:51]} Ne7 {[%emt 0:03:14]} 14. Bb2 {[%emt 0:05:09]} c6 {[%emt 0:05:10]} 15. Ra1 {[%emt 0:02:51]} Qc7 {[%emt 0:05:46]} 16. Qb3 {[%emt 0:08:36]} dxc4 {[%emt 0:05:14]} 17. dxc4 {[%emt 0:00:37]} Nf5 {[%emt 0:10:06]} 18. Nce4 {[%emt 0:09:04]} Nxe4 {[%emt 0:03:32]} 19. Bxe4 {[%emt 0:00:49]} Nd4 {[%emt 0:01:32]} 20. Bxd4 {[%emt 0:02:30]} exd4 {[%emt 0:00:19]} 21. b6 {[%emt 0:01:57]} Qd7 {[%emt 0:06:53]} 22. Bg2 {[%emt 0:03:56]} Rxa1 {[%emt 0:04:13]} 23. Rxa1 {[%emt 0:00:07]} d3 {[%emt 0:00:10]} 24. Re1 {[%emt 0:01:29]} dxe2 {[%emt 0:01:50]} 25. Rxe2 {[%emt 0:00:08]} Ra8 $17 {[%emt 0:02:16]} 26. h4 {[%emt 0:02:47]} Bg4 {[%emt 0:02:13]} 27. Nf3 {[%emt 0:00:36]} Qf5 {[%emt 0:06:14]} 28. Re7 {[%emt 0:04:32]} Ra1+ {[%emt 0:07:49]} 29. Kh2 {[%emt 0:00:08]} Rb1 {[%emt 0:03:01]} 30. Re8+ {[%emt 0:06:50]} Bf8 {[%emt 0:00:10]} 31. Qe3 {[%emt 0:03:13]} Qd7 {[%emt 0:08:09]} 32. Rb8 {[%emt 0:07:56]} Kg7 {[%emt 0:12:57]} 33. Ne5 {[%emt 0:06:58]} Qd1 {[%emt 0:00:11]} 34. Nxg4 {[%emt 0:00:22]} Qxg4 {[%emt 0:00:03]} 35. Qe5+ {[%emt 0:01:13]} f6 {[%emt 0:02:01]} 36. Rxb7+ {[%emt 0:00:48]} Kh6 {[%emt 0:01:34]} 37. Qc7 {[%emt 0:02:27]} 1-0